[Event "21st Alekhine FIDE 2017"]
[Site "Voronezh"]
[Date "2017.06.17"]
[Round "6"]
[White "Lebedev, Mikhail S"]
[Black "Peschansky, Mikhail"]
[Result "0-1"]
[ECO "B06"]
[WhiteElo "2041"]
[BlackElo "2162"]
[Annotator "ChessBase"]
[PlyCount "136"]
[EventDate "2017.??.??"]
[EventType "swiss"]
[EventCountry "RUS"]
[SourceTitle "playchess.com"]
[Source "ChessBase"]
[SourceQuality "1"]
[TimeControl "40/5400+30:1800+30"]

1. e4 {[%emt 0:00:00]} g6 {[%emt 0:00:25]} 2. d4 {[%emt 0:01:22]} Bg7 {[%emt 0:00:07]} 3. Nf3 {[%emt 0:02:00]} c6 {[%emt 0:03:07]} 4. Nc3 {[%emt 0:04:15]} d6 {[%emt 0:02:33]} 5. h3 {[%emt 0:04:06]} Nd7 {[%emt 0:00:58]} 6. Be3 {[%emt 0:05:37]} Qb6 {[%emt 0:04:44]} 7. Qc1 {[%emt 0:12:24]} Ngf6 {[%emt 0:02:35]} 8. Be2 {[%emt 0:02:26]} a6 {[%emt 0:17:09]} 9. O-O {[%emt 0:03:08]} O-O {[%emt 0:01:09]} 10. a4 {[%emt 0:07:05]} a5 {[%emt 0:03:58]} 11. Rd1 {[%emt 0:12:03]} Qc7 {[%emt 0:02:18]} 12. Bh6 {[%emt 0:04:17]} e5 {[%emt 0:07:32]} 13. dxe5 {[%emt 0:06:11]} dxe5 {[%emt 0:00:05]} 14. Bxg7 {[%emt 0:02:57]} Kxg7 {[%emt 0:00:06]} 15. Qe3 {[%emt 0:00:46]} Re8 {[%emt 0:00:53]} 16. Bc4 {[%emt 0:03:57]} Qb6 {[%emt 0:02:42]} 17. Qxb6 {[%emt 0:05:05]} Nxb6 {[%emt 0:00:01]} 18. Bb3 {[%emt 0:03:08]} Nfd7 {[%emt 0:03:24]} 19. Nd2 {[%emt 0:05:52]} Nc5 {[%emt 0:01:26]} 20. Bc4 {[%emt 0:02:47]} Rd8 {[%emt 0:05:05]} 21. Bf1 {[%emt 0:01:17]} Be6 {[%emt 0:01:14]} 22. b3 {[%emt 0:01:39]} f6 {[%emt 0:00:55]} 23. Nf3 {[%emt 0:01:08]} h5 {[%emt 0:00:54]} 24. g3 {[%emt 0:01:52]} g5 {[%emt 0:03:46]} 25. Kg2 {[%emt 0:03:35]} Kf7 {[%emt 0:01:14]} 26. Be2 {[%emt 0:01:08]} Ke7 {[%emt 0:00:20]} 27. h4 {[%emt 0:00:38]} g4 {[%emt 0:01:52]} 28. Nh2 {[%emt 0:00:52]} Rg8 {[%emt 0:02:04]} 29. f3 {[%emt 0:00:27]} gxf3+ {[%emt 0:01:06]} 30. Bxf3 {[%emt 0:00:11]} Bf7 {[%emt 0:00:02]} 31. Kf2 {[%emt 0:00:47]} Ne6 {[%emt 0:03:22]} 32. Nf1 {[%emt 0:01:04]} Nd4 {[%emt 0:00:07]} 33. Ne3 {[%emt 0:00:13]} Bg6 {[%emt 0:02:35]} 34. Bg2 {[%emt 0:00:36]} Nd7 {[%emt 0:01:44]} 35. Ne2 {[%emt 0:00:35]} Nxe2 {[%emt 0:00:13]} 36. Kxe2 {[%emt 0:00:05]} Nc5 {[%emt 0:00:01]} 37. Kf2 {[%emt 0:01:57]} Bxe4 {[%emt 0:05:10]} 38. Bh3 {[%emt 0:00:05]} Rad8 {[%emt 0:01:07]} 39. Nf5+ {[%emt 0:01:02]} Bxf5 {[%emt 0:02:46]} 40. Bxf5 {[%emt 0:00:01]} Rd5 {[%emt 0:30:11]} 41. Rxd5 {[%emt 0:31:02]} cxd5 {[%emt 0:00:05]} 42. Rd1 {[%emt 0:00:27]} Kd6 {[%emt 0:01:04]} 43. Bh7 {[%emt 0:00:38]} Rg7 {[%emt 0:00:08]} 44. Bf5 {[%emt 0:00:01]} e4 {[%emt 0:00:40]} 45. Bh3 {[%emt 0:01:06]} Ke5 {[%emt 0:00:14]} 46. Bf1 {[%emt 0:00:19]} d4 {[%emt 0:00:40]} 47. Be2 {[%emt 0:00:13]} e3+ {[%emt 0:00:44]} 48. Kf3 {[%emt 0:00:19]} Ne4 {[%emt 0:00:11]} 49. Rg1 {[%emt 0:00:11]} f5 {[%emt 0:00:37]} 50. Bb5 {[%emt 0:00:42]} Rc7 {[%emt 0:00:47]} 51. Bd3 {[%emt 0:00:52]} Rc3 {[%emt 0:00:20]} 52. Rg2 {[%emt 0:00:33]} Nf2 {[%emt 0:01:11]} 53. Rxf2 {[%emt 0:00:54]} exf2 {[%emt 0:00:05]} 54. Kxf2 {[%emt 0:00:01]} f4 {[%emt 0:00:29]} 55. Kf3 {[%emt 0:00:08]} fxg3 {[%emt 0:00:08]} 56. Kxg3 {[%emt 0:00:04]} Rc7 {[%emt 0:00:19]} 57. Kh3 {[%emt 0:01:40]} Kf4 {[%emt 0:00:20]} 58. Bg6 {[%emt 0:00:24]} Rc5 {[%emt 0:00:33]} 59. Bd3 {[%emt 0:00:32]} Ke3 {[%emt 0:01:03]} 60. Kg3 {[%emt 0:00:11]} Kd2 {[%emt 0:00:23]} 61. Bg6 {[%emt 0:00:45]} Rxc2 {[%emt 0:00:47]} 62. Bxh5 {[%emt 0:00:15]} Rc3+ {[%emt 0:02:30]} 63. Kf4 {[%emt 0:00:05]} d3 {[%emt 0:00:55]} 64. Bf3 {[%emt 0:01:01]} Rxb3 {[%emt 0:00:57]} 65. h5 {[%emt 0:00:06]} Rb6 {[%emt 0:01:27]} 66. Kg5 {[%emt 0:00:47]} Kc1 {[%emt 0:00:24]} 67. h6 {[%emt 0:00:55]} Rxh6 {[%emt 0:00:06]} 68. Kxh6 {[%emt 0:00:04]} d2 {[%emt 0:00:04]} 0-1

[Event "21st Alekhine FIDE 2017"]
[Site "Voronezh"]
[Date "2017.06.17"]
[Round "6"]
[White "Rozmetov, Aybek"]
[Black "Yashmetov, Nikolay"]
[Result "1-0"]
[ECO "E15"]
[WhiteElo "1978"]
[BlackElo "2127"]
[Annotator "ChessBase"]
[PlyCount "125"]
[EventDate "2017.??.??"]
[EventType "swiss"]
[EventCountry "RUS"]
[SourceTitle "playchess.com"]
[Source "ChessBase"]
[SourceQuality "1"]
[TimeControl "40/5400+30:1800+30"]

1. d4 {[%emt 0:00:00]} Nf6 {[%emt 0:00:38]} 2. c4 {[%emt 0:00:00]} e6 {[%emt 0:00:06]} 3. Nf3 {[%emt 0:00:00]} b6 {[%emt 0:00:18]} 4. g3 {[%emt 0:00:02]} Ba6 {[%emt 0:00:26]} 5. b3 {[%emt 0:00:18]} b5 {[%emt 0:00:38]} 6. cxb5 Bxb5 {[%emt 0:00:41]} 7. Bg2 {[%emt 0:01:57]} d5 {[%emt 0:07:28]} 8. O-O {[%emt 0:00:16]} Be7 {[%emt 0:04:11]} 9. Nc3 {[%emt 0:01:04]} Ba6 {[%emt 0:01:19]} 10. Bf4 {[%emt 0:00:15]} Nh5 {[%emt 0:05:30]} 11. Be3 {[%emt 0:02:25]} O-O {[%emt 0:09:56]} 12. Ne5 {[%emt 0:00:47]} c6 {[%emt 0:05:18]} 13. Qc2 {[%emt 0:01:45]} Nf6 {[%emt 0:04:51]} 14. Na4 {[%emt 0:07:52]} Bb7 {[%emt 0:01:57]} 15. Rac1 {[%emt 0:00:51]} Nfd7 {[%emt 0:01:33]} 16. Nd3 {[%emt 0:01:29]} Na6 {[%emt 0:03:03]} 17. Qb2 {[%emt 0:01:50]} Bd6 {[%emt 0:05:21]} 18. Rc2 {[%emt 0:02:00]} Qe7 {[%emt 0:01:31]} 19. b4 {[%emt 0:06:29]} Rab8 {[%emt 0:05:57]} 20. a3 {[%emt 0:03:57]} Nb6 {[%emt 0:09:08]} 21. Ndc5 {[%emt 0:18:11]} Bxc5 {[%emt 0:08:13]} 22. Nxc5 {[%emt 0:01:09]} Nxc5 {[%emt 0:04:01]} 23. dxc5 {[%emt 0:03:35]} Nd7 {[%emt 0:00:54]} 24. b5 {[%emt 0:03:02]} Rfc8 {[%emt 0:02:54]} 25. Rfc1 {[%emt 0:04:28]} f6 {[%emt 0:05:42]} 26. a4 {[%emt 0:00:57]} Ba8 {[%emt 0:01:19]} 27. h4 {[%emt 0:07:11]} a6 {[%emt 0:01:31]} 28. b6 {[%emt 0:00:47]} Bb7 {[%emt 0:00:05]} 29. a5 {[%emt 0:00:40]} Re8 {[%emt 0:02:45]} 30. Qb4 {[%emt 0:00:46]} Rbd8 {[%emt 0:00:38]} 31. Bd2 {[%emt 0:01:24]} Nf8 {[%emt 0:01:36]} 32. e4 {[%emt 0:02:14]} Qf7 {[%emt 0:01:33]} 33. exd5 {[%emt 0:00:41]} exd5 {[%emt 0:00:04]} 34. Bf4 {[%emt 0:01:05]} Ng6 {[%emt 0:03:01]} 35. Bc7 {[%emt 0:00:42]} Rd7 {[%emt 0:01:39]} 36. Bd6 {[%emt 0:02:12]} Ne5 {[%emt 0:00:03]} 37. Bf1 {[%emt 0:01:58]} Nf3+ {[%emt 0:01:54]} 38. Kg2 {[%emt 0:00:56]} Re4 {[%emt 0:00:02]} 39. Qxe4 {[%emt 0:03:15]} dxe4 {[%emt 0:00:57]} 40. Bc4 {[%emt 0:00:08]} f5 {[%emt 0:30:24]} 41. Bxf7+ {[%emt 0:31:18]} Kxf7 {[%emt 0:00:03]} 42. g4 {[%emt 0:01:33]} g6 {[%emt 0:00:56]} 43. Kg3 {[%emt 0:01:38]} Kf6 {[%emt 0:00:40]} 44. g5+ {[%emt 0:02:56]} Ke6 {[%emt 0:00:04]} 45. Rh1 {[%emt 0:00:36]} Nd4 {[%emt 0:00:54]} 46. Rd2 {[%emt 0:01:39]} Nb3 {[%emt 0:00:21]} 47. Ra2 {[%emt 0:00:35]} Nd4 {[%emt 0:00:31]} 48. h5 {[%emt 0:01:12]} gxh5 {[%emt 0:00:07]} 49. Rxh5 {[%emt 0:00:10]} Kd5 {[%emt 0:00:05]} 50. Rh6 {[%emt 0:01:13]} Rg7 {[%emt 0:00:16]} 51. Rd2 {[%emt 0:05:03]} Kc4 {[%emt 0:00:17]} 52. Bf4 {[%emt 0:01:53]} Nb3 {[%emt 0:00:41]} 53. Rd8 {[%emt 0:00:57]} Nxa5 {[%emt 0:00:52]} 54. Rh8 {[%emt 0:00:20]} Kxc5 {[%emt 0:00:07]} 55. Be3+ {[%emt 0:00:43]} Kb5 {[%emt 0:00:37]} 56. R8xh7 {[%emt 0:00:09]} Rg8 {[%emt 0:00:04]} 57. Rh8 {[%emt 0:02:36]} Rg7 {[%emt 0:00:39]} 58. g6 {[%emt 0:00:41]} c5 {[%emt 0:00:24]} 59. Bg5 {[%emt 0:00:38]} Bd5 {[%emt 0:00:45]} 60. Bf6 {[%emt 0:00:48]} Rd7 {[%emt 0:00:02]} 61. Rd8 {[%emt 0:01:08]} e3 {[%emt 0:00:21]} 62. Rxd7 {[%emt 0:00:37]} e2 {[%emt 0:00:03]} 63. Bc3 1-0

[Event "21st Alekhine FIDE 2017"]
[Site "Voronezh"]
[Date "2017.06.17"]
[Round "6"]
[White "Piskov, Vladimir A"]
[Black "Geranichev, Mikhail"]
[Result "0-1"]
[ECO "A45"]
[WhiteElo "1909"]
[BlackElo "2076"]
[Annotator "NA"]
[PlyCount "82"]
[EventDate "2017.??.??"]
[EventType "swiss"]
[EventCountry "RUS"]
[SourceTitle "playchess.com"]
[Source "ChessBase"]
[SourceQuality "1"]
[TimeControl "40/5400+30:1800+30"]

{[%evp 23,80,50,85,58,92,57,153,34,151,99,115,133,170,190,231,231,229,239,224,231,264,214,247,171,239,133,158,127,123,152,140,148,132,154,166,48,92,69,126,0,0,0,0,0,0,0,0,0,32767,32767,32767,0,32767,0,32767,0,32767,0,0]} 1. d4 {[%emt 0:00:00]} Nf6 {[%emt 0:00:25]} 2. Bg5 {[%emt 0:00:43]} g6 {[%emt 0:00:33]} 3. Nc3 {[%emt 0:00:34]} d5 {[%emt 0:00:19]} 4. h4 {[%emt 0:01:20] D01: Veresov Opening} (4. Bxf6 exf6 5. e3 Bg7 6. g3 O-O 7. Bg2 c6 8. h4 h5 9. Nge2 Bg4 10. Qd2 Bxe2 11. Nxe2 f5 12. Qb4 Qb6 13. Qb3 Nd7 {½-½ (75) Michalik,P (2557)-Ftacnik,L (2566) Prievidza 2014}) 4... h6 {[%emt 0:01:06]} 5. Bxf6 exf6 {[%emt 0:00:06]} 6. h5 {[%emt 0:00:54]} g5 {[%emt 0:00:21]} 7. e3 {[%emt 0:00:04]} Bg7 $146 {[%emt 0:00:23]} ({Predecessor:} 7... Be6 8. Bd3 c5 9. dxc5 Bxc5 10. Nge2 Nc6 {1-0 (38) Tonndorf,M (2027)-Margraf,D (2105) Bockenem 2003}) 8. Qf3 {[%emt 0:00:51]} c6 {[%emt 0:00:45]} 9. Bd3 {[%emt 0:00:06]} O-O {[%emt 0:00:40]} 10. Nge2 {[%emt 0:00:01]} Re8 {[%emt 0:00:31]} 11. O-O-O {[%emt 0:00:47]} Nd7 {[%emt 0:00:26]} 12. e4 {[%emt 0:03:41]} dxe4 {[%emt 0:00:50]} 13. Bxe4 {[%emt 0:01:47]} Nf8 {[%emt 0:00:27]} 14. d5 {[%emt 0:01:03]} (14. g4 $16) 14... c5 {[%emt 0:00:21]} ({Better is} 14... cxd5 15. Rxd5 (15. Bxd5 Qb6 $11) 15... Qc7) 15. Kb1 {[%emt 0:00:41]} (15. Ng3 $16) 15... Qd6 {[%emt 0:02:42]} ({Black should try} 15... f5 $14 16. Bxf5 Bxf5 17. Qxf5 Qb6) 16. Rhe1 {[%emt 0:01:45]} (16. Ng3 $142) 16... Bd7 {[%emt 0:01:05]} 17. Ng3 {[%emt 0:00:43]} b5 {[%emt 0:00:58]} 18. Bf5 {[%emt 0:03:16]} Rxe1 {[%emt 0:01:26]} 19. Rxe1 {[%emt 0:00:05]} Re8 {[%emt 0:00:38]} 20. Rxe8 {[%emt 0:04:59]} Bxe8 {[%emt 0:03:27]} 21. Nge4 {[%emt 0:00:30]} Qb6 {[%emt 0:03:03]} 22. Qe3 {[%emt 0:01:00]} Bd7 {[%emt 0:01:47]} 23. d6 {[%emt 0:09:30]} Qc6 {[%emt 0:04:47]} (23... Be6 $142) 24. g4 {[%emt 0:08:21]} ({White should play} 24. Bxd7 $18 Qxd7 25. Qd3 (25. Qxc5 f5 $16) (25. Nxc5 Qxd6 26. Nd3 b4 $14)) 24... b4 {[%emt 0:01:46]} 25. Ne2 {[%emt 0:00:52]} Bxf5 {[%emt 0:00:55]} 26. gxf5 {[%emt 0:00:02]} Nd7 {[%emt 0:00:36] [#]} 27. c4 $1 {[%emt 0:02:53]} Bf8 {[%emt 0:06:21]} 28. Qd3 {[%emt 0:04:11]} Kg7 {[%emt 0:01:05]} 29. f4 {[%emt 0:02:54]} ({White should try} 29. Nc1 $18) 29... a5 {[%emt 0:04:05]} 30. b3 {[%emt 0:02:43]} a4 {[%emt 0:01:04] [#]} 31. Kc2 {[%emt 0:00:33]} (31. Qd5 $1 $16 {[%cal Rd5c6]} Qxd5 32. cxd5 axb3 33. axb3) 31... Qa8 {[%emt 0:01:02]} 32. Kd2 {[%emt 0:04:19]} axb3 {[%emt 0:02:04]} 33. axb3 {[%emt 0:00:02]} Qa2+ {[%emt 0:00:45]} 34. Ke3 {[%emt 0:00:03]} Qb2 {[%emt 0:02:38]} 35. Kf3 {[%emt 0:05:52]} Qa1 {[%emt 0:08:14]} 36. Kg2 {[%emt 0:01:04]} Qe1 {[%emt 0:03:26]} 37. Nf2 {[%emt 0:05:42]} Kg8 {[%emt 0:04:05]} 38. fxg5 {[%emt 0:04:24]} hxg5 {[%emt 0:01:53]} 39. Ng3 {[%emt 0:01:12]} Qe5 {[%emt 0:03:04]} 40. Nfe4 {[%emt 0:00:44]} Qb2+ $11 {[%emt 0:31:11]} 41. Kh3 {[%emt 0:35:26]} g4+ {[%emt 0:00:12]} 0-1

[Event "21st Alekhine FIDE 2017"]
[Site "Voronezh"]
[Date "2017.06.17"]
[Round "6"]
[White "Sokolovsky, Victor"]
[Black "Kazmin, Semen"]
[Result "0-1"]
[ECO "C15"]
[WhiteElo "1896"]
[BlackElo "2086"]
[Annotator "NA"]
[PlyCount "66"]
[EventDate "2017.??.??"]
[EventType "swiss"]
[EventCountry "RUS"]
[SourceTitle "playchess.com"]
[Source "ChessBase"]
[SourceQuality "1"]
[TimeControl "40/5400+30:1800+30"]

{[%evp 14,53,25,25,28,5,28,-17,-14,-103,-70,-188,-129,-225,-185,-195,-192,-213,-218,-233,-242,-226,-214,-222,-260,-277,-312,-322,-363,-591,32767,-380,-357,-621,32767,-347,-335,32767,32767,32767,32767,-528]} 1. e4 {[%emt 0:01:37]} e6 {[%emt 0:00:05]} 2. d4 {[%emt 0:00:46]} d5 {[%emt 0:00:07]} 3. Nc3 {[%emt 0:00:51]} Bb4 {[%emt 0:00:12]} 4. Bd3 {[%emt 0:01:39]} dxe4 {[%emt 0:00:22]} 5. Bxe4 {[%emt 0:00:24]} Nf6 {[%emt 0:00:09]} 6. Bd3 {[%emt 0:01:07]} c5 {[%emt 0:02:06]} 7. Nf3 {[%emt 0:00:33] C15: French: 3 Nc3 Bb4: Unusual White 4th moves} (7. a3 Ba5 8. dxc5 Bxc3+ 9. bxc3 Qa5 10. Nf3 O-O 11. O-O Nbd7 12. Bf4 Nxc5 13. Bd6 Re8 14. Rb1 Nxd3 15. Qxd3 {0-1 (41) Pershin,D (2336)-Smirnov,P (2564) Kazan 2016}) 7... Nc6 {[%emt 0:01:46]} 8. a3 {[%emt 0:01:32]} Bxc3+ 9. bxc3 {[%emt 0:00:11]} O-O {[%emt 0:07:02]} 10. Bg5 $146 {[%emt 0:02:44]} ({Predecessor:} 10. O-O b6 11. Rb1 Qe7 12. Re1 Rd8 13. Bg5 h6 14. Bh4 {1-0 (23) Miellet Bensan,Y (2213)-Sedina,E (2393) Cappelle-la-Grande 2001}) 10... h6 {[%emt 0:02:50]} 11. h4 {[%emt 0:03:42]} (11. Be3 $11) 11... Re8 {[%emt 0:03:29]} 12. Qd2 {[%emt 0:05:58]} (12. Ne5 $17) 12... e5 {[%emt 0:20:33]} 13. Bxf6 {[%emt 0:17:25]} (13. dxe5 $142 hxg5 14. hxg5) 13... Qxf6 {[%emt 0:00:25]} 14. dxe5 {[%emt 0:01:32]} Nxe5 {[%emt 0:00:50]} 15. O-O-O {[%emt 0:03:44]} Nxd3+ {[%emt 0:06:24]} 16. Qxd3 {[%emt 0:01:48] [#]} Bf5 $1 {[%emt 0:00:38]} 17. Qc4 {[%emt 0:01:44]} Re4 {[%emt 0:07:41]} 18. Qb3 {[%emt 0:05:50]} Qa6 {[%emt 0:01:53]} 19. Rhe1 {[%emt 0:01:56] [#]} Be6 $1 {[%emt 0:02:19]} 20. Qb2 {[%emt 0:06:17]} Ra4 {[%emt 0:01:06]} 21. Kd2 $2 {[%emt 0:05:23]} (21. c4) 21... Rd8+ {[%emt 0:05:12]} 22. Kc1 {[%emt 0:02:20]} Rc8 {[%emt 0:02:52]} 23. Kd2 $2 {[%emt 0:01:20]} (23. Rxe6 Qxe6 24. Qb3 Qxb3 25. cxb3 Rxa3 26. Kb2) 23... Rc6 {[%emt 0:02:24]} 24. Re3 {[%emt 0:00:47]} Rd6+ {[%emt 0:02:45]} 25. Ke1 {[%emt 0:04:01]} Rxd1+ {[%emt 0:00:16]} 26. Kxd1 {[%emt 0:00:07]} Rxa3 {[%emt 0:00:13]} 27. Kd2 $19 {[%emt 0:02:58]} Ra2 {[%emt 0:01:16]} 28. Qb1 {[%emt 0:00:32]} Ra1 {[%emt 0:02:07]} 29. Qb2 {[%emt 0:04:26]} Qf1 {[%emt 0:00:52]} 30. Ne1 {[%emt 0:01:40]} Qxf2+ {[%emt 0:00:16]} 31. Re2 {[%emt 0:00:18]} Qf4+ {[%emt 0:00:17]} 32. Re3 {[%emt 0:00:41]} Rxe1 {[%emt 0:00:08]} 33. Kxe1 {[%emt 0:00:16]} Qxe3+ {[%emt 0:00:02]} 0-1

[Event "21st Alekhine FIDE 2017"]
[Site "Voronezh"]
[Date "2017.06.17"]
[Round "6"]
[White "Filippov, Vladimir"]
[Black "Chekletsov, Egor"]
[Result "*"]
[ECO "A05"]
[WhiteElo "1882"]
[BlackElo "2070"]
[Annotator "NA RC"]
[PlyCount "30"]
[EventDate "2017.??.??"]
[EventType "swiss"]
[EventCountry "RUS"]
[SourceTitle "playchess.com"]
[Source "ChessBase"]
[SourceQuality "1"]
[TimeControl "40/5400+30:1800+30"]

{[%evp 9,22,0,6,-11,-4,-13,-16,0,5,-7,2,8,7,0,7]} 1. Nf3 Nf6 2. e3 g6 3. d4 Bg7 4. Nbd2 d6 5. c3 O-O 6. Bd3 c5 7. Qc2 Nc6 8. O-O e5 9. dxc5 dxc5 10. Rd1 Qe7 11. e4 Nh5 $11 12. g3 Kh8 13. Nf1 Bg4 14. Be2 f5 15. Ne3 fxe4 *

[Event "21st Alekhine FIDE 2017"]
[Site "Voronezh"]
[Date "2017.06.17"]
[Round "6"]
[White "Rybakova, Polina"]
[Black "Filippov, Ivan"]
[Result "0-1"]
[ECO "B01"]
[WhiteElo "1847"]
[BlackElo "2041"]
[Annotator "NA RC"]
[PlyCount "94"]
[EventDate "2017.??.??"]
[EventType "swiss"]
[EventCountry "RUS"]
[SourceTitle "playchess.com"]
[Source "ChessBase"]
[SourceQuality "1"]
[TimeControl "40/5400+30:1800+30"]

1. e4 {[%emt 0:00:00]} d5 {[%emt 0:00:23]} 2. exd5 {[%emt 0:00:00]} Qxd5 {[%emt 0:00:05]} 3. Nc3 {[%emt 0:00:00]} Qa5 {[%emt 0:00:06]} 4. Nf3 {[%emt 0:00:51]} Nf6 {[%emt 0:00:13]} 5. Be2 {[%emt 0:00:22]} c6 {[%emt 0:05:39]} 6. O-O {[%emt 0:00:17]} Bg4 {[%emt 0:00:06]} 7. d4 {[%emt 0:00:18]} e6 {[%emt 0:00:51]} 8. Ne5 {[%emt 0:01:47]} Bxe2 {[%emt 0:02:18]} 9. Qxe2 {[%emt 0:00:30]} Be7 {[%emt 0:00:12]} 10. Ng4 {[%emt 0:03:55]} Nbd7 {[%emt 0:01:38]} 11. Nxf6+ {[%emt 0:00:23]} Nxf6 {[%emt 0:00:33]} 12. Ne4 {[%emt 0:00:32]} Qf5 {[%emt 0:00:55]} 13. Nxf6+ {[%emt 0:01:24]} Bxf6 {[%emt 0:00:09]} 14. c3 {[%emt 0:00:14]} O-O {[%emt 0:00:49]} 15. f3 {[%emt 0:01:37]} Rfe8 {[%emt 0:06:21]} 16. Re1 {[%emt 0:02:48]} e5 {[%emt 0:02:31]} 17. dxe5 {[%emt 0:04:06]} Rxe5 {[%emt 0:00:43]} 18. Qf2 {[%emt 0:00:21]} Rae8 {[%emt 0:09:41]} 19. Bd2 {[%emt 0:04:47]} a6 {[%emt 0:05:05]} 20. Rxe5 {[%emt 0:01:09]} Rxe5 {[%emt 0:00:00]} 21. Re1 {[%emt 0:00:19]} h6 {[%emt 0:03:21]} 22. Be3 {[%emt 0:01:36]} Qe6 {[%emt 0:00:59]} 23. b3 {[%emt 0:11:30]} Be7 {[%emt 0:10:23]} 24. Kf1 {[%emt 0:01:55]} Bd6 {[%emt 0:01:06]} 25. h3 {[%emt 0:02:19]} f5 {[%emt 0:06:58]} 26. g4 {[%emt 0:06:54]} fxg4 {[%emt 0:02:07]} 27. fxg4 {[%emt 0:03:48]} Qd5 {[%emt 0:00:46]} 28. Qg2 {[%emt 0:11:45]} Qd3+ {[%emt 0:01:04]} 29. Kf2 {[%emt 0:03:07]} Qxc3 {[%emt 0:01:24]} 30. Qf3 {[%emt 0:04:00]} Bc5 {[%emt 0:03:51]} 31. Re2 {[%emt 0:01:23]} Bxe3+ {[%emt 0:00:31]} 32. Rxe3 {[%emt 0:00:21]} Qd2+ {[%emt 0:00:27]} 33. Re2 {[%emt 0:00:30]} Rxe2+ {[%emt 0:00:03]} 34. Qxe2 {[%emt 0:00:06]} Qxe2+ {[%emt 0:00:08]} 35. Kxe2 {[%emt 0:00:05]} Kf7 {[%emt 0:00:18]} 36. Kf3 {[%emt 0:00:19]} Kf6 {[%emt 0:00:38]} 37. Kf4 {[%emt 0:00:15]} g5+ {[%emt 0:00:41]} 38. Ke4 {[%emt 0:00:05]} Ke6 {[%emt 0:00:08]} 39. Kd4 {[%emt 0:00:07]} b6 {[%emt 0:00:23]} 40. b4 {[%emt 0:02:34]} Kd6 {[%emt 0:30:15]} 41. a3 {[%emt 0:30:12]} c5+ {[%emt 0:00:30]} 42. Kc4 {[%emt 0:02:20]} b5+ {[%emt 0:01:16]} 43. Kc3 {[%emt 0:00:15]} Kd5 {[%emt 0:00:17]} 44. bxc5 {[%emt 0:00:57]} Kxc5 {[%emt 0:00:05]} 45. Kd3 {[%emt 0:00:07]} a5 {[%emt 0:00:17]} 46. Kc3 {[%emt 0:00:43]} Kd5 {[%emt 0:00:09]} 47. Kd3 {[%emt 0:00:07]} Ke5 {[%emt 0:00:09] Kd4+} 0-1

[Event "21st Alekhine FIDE 2017"]
[Site "Voronezh"]
[Date "2017.06.17"]
[Round "6"]
[White "Mezhov, Dmitriy"]
[Black "Khajrutdinov, Ildar"]
[Result "1/2-1/2"]
[ECO "E15"]
[WhiteElo "1809"]
[BlackElo "2087"]
[Annotator "NA RC"]
[PlyCount "125"]
[EventDate "2017.??.??"]
[EventType "swiss"]
[EventCountry "RUS"]
[SourceTitle "playchess.com"]
[Source "ChessBase"]
[SourceQuality "1"]
[TimeControl "40/5400+30:1800+30"]

1. d4 {[%emt 0:00:00]} Nf6 {[%emt 0:00:13]} 2. c4 {[%emt 0:00:00]} e6 {[%emt 0:00:08]} 3. Nf3 {[%emt 0:00:00]} b6 {[%emt 0:00:10]} 4. g3 {[%emt 0:00:43]} Ba6 {[%emt 0:00:49]} 5. Qa4 {[%emt 0:00:35]} c5 {[%emt 0:01:53]} 6. Bg2 {[%emt 0:01:07]} Bb7 {[%emt 0:00:06]} 7. O-O {[%emt 0:00:12]} cxd4 {[%emt 0:03:31]} 8. Nxd4 {[%emt 0:00:11]} Bxg2 {[%emt 0:00:18]} 9. Kxg2 {[%emt 0:00:04]} Qc8 {[%emt 0:02:02]} 10. Bf4 {[%emt 0:07:44] E15: Queen's Indian: 4 g3 sidelines, 4 g3 Ba6 and 4 g3 Bb7 early deviations} (10. Rd1 Qb7+ 11. f3 Bc5 12. Nc3 O-O 13. Bg5 Ng4 14. Ne4 h6 15. Bc1 Be7 16. Nb5 Ne5 17. Bf4 Ng6 18. Bd6 {0-1 (55) Nikolic,P (2603)-Navara,D (2734) Berlin 2015}) 10... a6 {[%emt 0:07:47] LiveBook: 6 Games} (10... Bc5 $5 {[%cal Rc5d4]} 11. Nf3 O-O $11) 11. Nd2 {[%emt 0:03:10]} Qb7+ $146 {[%emt 0:07:44]} ({Predecessor:} 11... Be7 12. N4f3 Qb7 13. Rac1 O-O 14. Rfe1 d6 15. e4 Nbd7 16. Qc2 b5 17. b3 Rfc8 {½-½ (27) Gerber,K-Woizech,A ICCF corr 1978}) 12. N2f3 {[%emt 0:00:06]} Be7 {[%emt 0:01:25]} 13. Rac1 {[%emt 0:28:43]} O-O {[%emt 0:02:52]} 14. h3 {[%emt 0:02:23]} d6 {[%emt 0:05:58]} 15. Be3 {[%emt 0:00:06]} Rc8 {[%emt 0:01:33]} 16. Rfd1 {[%emt 0:06:31]} Nbd7 {[%emt 0:02:17]} 17. b4 {[%emt 0:07:28]} Ne5 {[%emt 0:18:18]} 18. Qb3 {[%emt 0:00:27]} b5 {[%emt 0:03:01]} 19. cxb5 {[%emt 0:04:30]} axb5 {[%emt 0:00:17]} 20. Rxc8+ {[%emt 0:01:38]} Rxc8 {[%emt 0:00:13]} 21. a4 {[%emt 0:01:23]} bxa4 {[%emt 0:01:24]} 22. Qxa4 {[%emt 0:00:04]} Nc4 {[%emt 0:01:25]} 23. Rb1 {[%emt 0:15:19]} Nd5 {[%emt 0:03:39]} 24. Rb3 {[%emt 0:06:50]} Ndxe3+ {[%emt 0:15:50]} 25. fxe3 {[%emt 0:00:06] [#]} Bf6 $2 {[%emt 0:07:07]} (25... d5 $1 $19 26. Qb5 Qxb5 27. Nxb5 Rb8) 26. Kf2 {[%emt 0:08:57]} e5 {[%emt 0:01:26]} 27. Qb5 {[%emt 0:00:59]} Qxb5 {[%emt 0:06:27]} 28. Nxb5 {[%emt 0:00:06]} d5 {[%emt 0:02:18]} 29. Na7 {[%emt 0:00:45]} Rc7 {[%emt 0:01:05]} 30. Nb5 {[%emt 0:00:03]} Rc6 {[%emt 0:00:43]} 31. Na3 {[%emt 0:00:35]} Nb6 {[%emt 0:01:29]} 32. b5 {[%emt 0:00:54]} Rc1 {[%emt 0:00:32]} 33. Nb1 {[%emt 0:00:09]} Kf8 {[%emt 0:00:27]} 34. Nc3 {[%emt 0:02:33]} e4 {[%emt 0:02:06]} 35. Nd4 {[%emt 0:00:11]} Ke7 {[%emt 0:00:49]} 36. Na2 {[%emt 0:02:06]} Rc5 {[%emt 0:00:26]} 37. Nb4 {[%emt 0:00:11]} g6 {[%emt 0:00:32]} 38. Nbc6+ {[%emt 0:00:21]} Kd6 {[%emt 0:00:19]} 39. Ra3 {[%emt 0:00:03]} Bxd4 {[%emt 0:00:26]} 40. Nxd4 {[%emt 0:00:04]} Rc7 {[%emt 0:30:47]} 41. g4 {[%emt 0:30:34]} h6 {[%emt 0:00:20]} 42. Kg3 {[%emt 0:00:43]} Rb7 {[%emt 0:00:25]} 43. h4 {[%emt 0:00:34]} Nc4 {[%emt 0:00:38]} 44. Ra6+ {[%emt 0:00:04]} Nb6 {[%emt 0:00:40]} 45. h5 {[%emt 0:00:33]} Kc5 {[%emt 0:00:21]} 46. g5 {[%emt 0:01:19]} hxg5 {[%emt 0:00:32]} 47. h6 {[%emt 0:00:59]} f5 $2 {[%emt 0:00:16]} (47... f6 $1 $11 {and Black stays safe.}) 48. Ne6+ {[%emt 0:00:45]} Kxb5 {[%emt 0:00:13]} 49. Ra1 {[%emt 0:00:10]} Rh7 {[%emt 0:01:02]} 50. Rh1 {[%emt 0:00:03]} Nc8 {[%emt 0:00:38]} 51. Nf8 {[%emt 0:00:27]} Rh8 {[%emt 0:00:10]} 52. Nxg6 {[%emt 0:00:19]} Rh7 {[%emt 0:00:01]} 53. Nf8 {[%emt 0:02:04]} Rh8 {[%emt 0:00:03]} 54. h7 {[%emt 0:00:09]} Rxf8 {[%emt 0:01:41]} 55. h8=Q {[%emt 0:00:04]} Rxh8 {[%emt 0:00:36]} 56. Rxh8 {[%emt 0:00:05]} Nd6 {[%emt 0:00:29]} 57. Rg8 {[%emt 0:00:31]} Nc4 {[%emt 0:00:24]} 58. Rxg5 {[%emt 0:00:34]} Nxe3 {[%emt 0:00:11]} 59. Kf4 {[%emt 0:00:33]} d4 {[%emt 0:00:29]} 60. Rg3 {[%emt 0:01:13]} Kc4 {[%emt 0:00:40]} 61. Rxe3 {[%emt 0:00:20]} dxe3 {[%emt 0:00:06]} 62. Kxf5 {[%emt 0:00:01]} Kd5 $11 {[%emt 0:01:10]} (62... Kd4 $5) 63. Kf4 {[%emt 0:00:05]} 1/2-1/2